Cogmind - Beta 12 @@@ ROGUE MODE // 2023.10.01 @ 23:30:45 Player: Figgis Result: Self-destructed Performance ------------- Evolutions (1) 500 Regions Visited (2) 400 Robots Destroyed (35) 175 Value Destroyed (878) 878 Prototype IDs (8) 160 Alien Tech Used (0) 0 Bonus (0) 0 TOTAL SCORE: 2113 Bonus ------- None Cogmind --------- Core Integrity 206/400 Matter 300/300 Energy 7/125 System Corruption 2% Temperature Cool (4) Movement Walking (190) Ox1 Location -9/Materials Parts ------- > --- POWER (1) -------- Light Ion Engine > --- PROPULSION (3) --- Aluminum Leg (fused) Aluminum Leg Aluminum Leg > --- UTILITY (3) ------ Medium Storage Unit Targeting Computer Shield Generator > --- WEAPON (2) ------- (None) > --- INVENTORY (10) --- Light Ion Engine Light Ion Engine Aluminum Leg Aluminum Leg Large Storage Unit Shield Generator Beam Rifle Spread Laser Particle Cannon Heavy Assault Rifle Peak State ------------ > --- POWER ------------ Ion Engine > --- PROPULSION ------- Aluminum Leg Aluminum Leg Aluminum Leg > --- UTILITY ---------- Medium Storage Unit Sensor Array Targeting Computer > --- WEAPON ----------- EM Shotgun Advanced Beam Cannon > --- INVENTORY -------- Light Ion Engine Aluminum Leg Aluminum Leg Aluminum Leg Large Storage Unit Shield Generator Shield Generator EM Shotgun EM Shotgun EM Shotgun [Rating: 13] Favorites ----------- Power Ion Engine Engine Ion Engine Propulsion Aluminum Leg Leg Aluminum Leg Utility Sensor Array Device Sensor Array Storage Medium Storage Unit Processor Targeting Computer Protection Light Armor Plating Weapon EM Shotgun Energy Gun EM Shotgun Energy Cannon Advanced Beam Cannon Ballistic Gun Assault Rifle Build | -11 -10 -9 ------- Run | Jun Mat Mat Slots Evolved 2 | . . 2 Power . | . . . Propulsion 1 | . . 1 Utility 1 | . . 1 Weapon . | . . . Parts Attached 38 | 6 18 14 Power 6 | 1 4 1 Engine 6 | 1 4 1 Core . | . . . Reactor . | . . . Propulsion 13 | 2 7 4 Treads . | . . . Leg 13 | 2 7 4 Wheel . | . . . Hover . | . . . Flight . | . . . Utility 6 | 1 2 3 Device 2 | . 1 1 Storage 2 | 1 1 . Processor 1 | . . 1 Hackware . | . . . Protection 1 | . . 1 Artifact . | . . . Weapon 13 | 2 5 6 Energy Gun 10 | 1 4 5 Energy Cannon 1 | . . 1 Ballistic Gun 2 | 1 1 . Ballistic Cannon . | . . . Launcher . | . . . Special Weapon . | . . . Impact Weapon . | . . . Slashing Weapon . | . . . Piercing Weapon . | . . . Special Melee Weapon . | . . . Unidentified Prototypes 1 | . . 1 Parts Lost 8 | . 1 7 Power 2 | . 1 1 Propulsion 1 | . . 1 Utility 1 | . . 1 Weapon 4 | . . 4 Highest Loss Streak 3 | . 1 3 To Critical Strikes . | . . . Average Slot Usage (%) 96 | . 96 96 Engine 12 | . 13 10 Leg 28 | . 27 31 Device 11 | . 11 10 Storage 12 | . 14 11 Processor 3 | . . 8 Energy Gun 22 | . 23 20 Ballistic Gun 2 | . 3 . Naked Turns . | . . . Heaviest Build 25 | 12 21 25 Greatest Support 30 | 20 20 30 Greatest Overweight (x) 5 | 3 5 2 Average Overweight (x) . | . . . Largest Inventory Capacity 10 | 8 10 10 Average Capacity 9 | 7 9 10 Most Carried 10 | 5 10 10 Average Carried 7 | 2 7 8 Final Capacity 10 | 8 10 10 Final Carried 10 | 2 9 10 Class Distribution -------------------- 96% | Mutant 3% | Scavenger-Mutant Dominant Class ---------------- Mutant | -10/Materials Mutant | -9/Materials Resources | -11 -10 -9 ----------- Run | Jun Mat Mat Matter Collected 640 | 170 301 169 Remotely . | . . . Salvage Created 1383 | . 601 782 Parts 100 | . 36 64 Haulers Intercepted 1 | . 1 . Recyclers Shooed 3 | . 1 2 Parts Field Recycled . | . . . Retrieved Matter . | . . . Parts Self-Destructed . | . . . Prevented . | . . . Kills | -11 -10 -9 ------- Run | Jun Mat Mat Combat Hostiles Destroyed 23 | . 9 14 Guns 21 | . 8 13 AOE 2 | . 1 1 Classes Destroyed 8 | . 6 2 Builder 1 | . . 1 Hauler 1 | . 1 . Recycler 3 | . 2 1 Operator 2 | . 1 1 Watcher 5 | . 3 2 Swarmer 6 | . 3 3 Grunt 10 | . 6 4 Sentry 7 | . . 7 Best Kill Streak 6 | . 6 3 Combat Bots Only 4 | . 4 3 Max Kills in Single Turn 2 | . 2 2 Gunslinging . | . . . Exploded 1 | . 1 1 Melee . | . . . Uniques/NPCs Destroyed . | . . . Combat | -11 -10 -9 -------- Run | Jun Mat Mat Damage Taken 1471 | . 491 980 Core 294 | . 100 194 Absorbed by Shields 73 | . . 73 Regen/Repaired (Parts) 45 | . 45 . Core Remaining (%) 80 | 100 60 . Volleys Fired 80 | . 38 42 Largest 2 | . 2 2 Hottest 100 | . 100 90 Shots Fired 149 | . 75 74 Gun 149 | . 75 74 Cannon . | . . . Launcher . | . . . Special . | . . . Kinetic 25 | . 25 . Thermal 28 | . 28 . Explosive . | . . . Electromagnetic 96 | . 22 74 Robot Hit Streak 20 | . 7 20 Robot Miss Streak 5 | . 5 3 Penetration Max . | . . . Secondary Targets 2 | . 2 . Max Gunslinging Chain 1 | . 1 . Shots Hit Robots 107 | . 44 63 Core Hits 67 | . 24 43 Critical Kills . | . . . Critical Parts Destroyed . | . . . Critical Strikes . | . . . Melee Attacks . | . . . Impact . | . . . Slashing . | . . . Piercing . | . . . Sneak Attacks . | . . . Combat Hostiles . | . . . Follow-up Attacks . | . . . Damage Inflicted 1853 | . 707 1146 Guns 1516 | . 579 937 Cannons . | . . . Explosions 337 | . 128 209 Melee . | . . . Ramming . | . . . Kinetic 218 | . 218 . Thermal 509 | . 300 209 Explosive . | . . . Electromagnetic 1126 | . 189 937 Impact . | . . . Slashing . | . . . Piercing . | . . . Highest Corruption 2 | . . 2 Average Corruption 2 | . . 2 Corruption Purged . | . . . Corruption Blocked . | . . . Effects 4 | . . 4 Heat Flow Errors 1 | . . 1 Energy Discharges 1 | . . 1 Parts Fused 2 | . . 2 Overload Shots . | . . . Overflow Damage . | . . . Projectiles . | . . . Explosions . | . . . Melee . | . . . Knockbacks . | . . . Impact . | . . . Kinetic . | . . . Secondary . | . . . Self-Inflicted Damage 117 | . 36 81 Shots 4 | . 1 3 Rammed . | . . . Targets Rammed . | . . . Kicked . | . . . Crushed . | . . . Highest Temperature 369 | . 369 171 Average Temperature 66 | . 89 48 Received Heat Transfer 564 | . 252 312 Siege Activations . | . . . Robots Corrupted . | . . . Combat Hostiles . | . . . Parts Fried 2 | . . 2 Impact Corruptions . | . . . Robots Melted . | . . . Combat Hostiles . | . . . Parts Melted . | . . . Heat Transferred 931 | . 631 300 Parts Sabotaged . | . . . Parts Stolen . | . . . Parts Stripped . | . . . Power Chain Reactions 4 | . 1 3 Missiles Intercepted . | . . . Alert | -11 -10 -9 ------- Run | Jun Mat Mat Peak Influence 298 | . 236 298 Initial 1 | . . 1 Average 83 | . 59 133 Maximum Alert Level 1 | . 1 1 Low Security (%) 87 | 100 92 78 Level 1 12 | . 7 21 Level 2 . | . . . Level 3 . | . . . Level 4 . | . . . Level 5 . | . . . High Security . | . . . Max Security . | . . . Squads Dispatched 3 | . . 3 Investigation 3 | . . 3 Extermination . | . . . Reinforcement . | . . . Assault . | . . . Garrison . | . . . Intercept . | . . . Searches Triggered . | . . . Construction Impeded . | . . . Haulers Reinforced . | . . . Active Scanning Responses . | . . . Cargo Convoy Interrupts . | . . . Stealth | -11 -10 -9 --------- Run | Jun Mat Mat Distress Signals . | . . . Communications Jammed . | . . . Distress Signals . | . . . Times Spotted 38 | . 17 21 Peak Tracking Total 3 | . 3 3 Tactical Retreats 1 | . 1 . Traps | -11 -10 -9 ------- Run | Jun Mat Mat Traps Triggered 6 | . 2 4 Indirectly . | . . . Trap Hack Attempts . | . . . Triggered . | . . . Disarmed . | . . . Reprogrammed . | . . . Reused . | . . . Traps Extracted . | . . . Installed . | . . . Triggered . | . . . Machines | -11 -10 -9 ---------- Run | Jun Mat Mat Machines Disabled . | . . . Max in Single Turn . | . . . Machines Repaired . | . . . Machines Sabotaged . | . . . Overloaded Fab Kills . | . . . Hacking | -11 -10 -9 --------- Run | Jun Mat Mat Machines Accessed 19 | . 10 9 Terminals 15 | . 8 7 Fabricators . | . . . Repair Stations 2 | . 1 1 Recycling Units 1 | . 1 . Scanalyzers 1 | . . 1 Garrison Access . | . . . Total Hacks 54 | . 29 25 Successful 29 | . 17 12 Failed 25 | . 12 13 Catastrophic 3 | . 1 2 Database Lockouts . | . . . Manual . | . . . Terminals 42 | . 25 17 Fabricators . | . . . Repair Stations 4 | . 3 1 Recycling Units 1 | . 1 . Scanalyzers 7 | . . 7 Garrison Access . | . . . Terminal Hacks 22 | . 14 8 Record 12 | . 8 4 Prototype ID Bank 5 | . 3 2 Scanalyzer Index 1 | . 1 . Locate Traps 2 | . 2 . Assault Status 1 | . . 1 Registered Components 1 | . . 1 Fabricator Hacks . | . . . Repair Station Hacks 2 | . 2 . Scan Component 1 | . 1 . Repair 1 | . 1 . Recycling Unit Hacks 1 | . 1 . Report Inventory 1 | . 1 . Scanalyzer 4 | . . 4 Insert Component 2 | . . 2 Analyze 2 | . . 2 Garrison Access Hacks . | . . . Unauthorized Hacks . | . . . Terminals . | . . . Fabricators . | . . . Repair Stations . | . . . Recycling Units . | . . . Scanalyzers . | . . . Garrison Access . | . . . Data Cores Recovered 2 | . 1 1 Used . | . . . Hacking Detections 18 | . 9 9 Full Trace Events 3 | . . 3 Feedback Events . | . . . Feedback Blocked . | . . . Robot Schematics Acquired . | . . . Robots Built . | . . . Authchips . | . . . Time . | . . . Total Robot Build Rating . | . . . Part Schematics Acquired 2 | . . 2 Parts Built . | . . . Authchips . | . . . Time . | . . . Total Part Build Rating . | . . . Parts Repaired 1 | . 1 . Time 26 | . 26 . Parts Recycled . | . . . Recycled Matter . | . . . Retrieved Matter . | . . . Retrieved Components . | . . . Parts Scanalyzed 2 | . . 2 Part Schematics Acquired 2 | . . 2 Parts Damaged . | . . . Bothacking | -11 -10 -9 ------------ Run | Jun Mat Mat Used RIF Installer . | . . . Robots Hacked . | . . . Non-combat . | . . . Combat . | . . . Robot Hacks Applied . | . . . Relay Couplers Released . | . . . Fabnet Peak Effective % . | . . . Robots Rewired . | . . . Allies Hacked . | . . . Hacks Repelled . | . . . Allies | -11 -10 -9 -------- Run | Jun Mat Mat Total Allies . | . . . Largest Group . | . . . Highest-Rated Group . | . . . Highest-Rated Ally . | . . . Total Orders . | . . . Ally Attacks . | . . . Total Damage . | . . . Kills . | . . . Allies Corrupted . | . . . Allies Melted . | . . . Intel | -11 -10 -9 ------- Run | Jun Mat Mat Robot Analysis Total . | . . . Derelict Logs Recovered . | . . . Drone Launches . | . . . Drone Recoveries . | . . . Exploration | -11 -10 -9 ------------- Run | Jun Mat Mat Turns Passed 2165 | 62 1347 756 Spaces Moved 1180 | 37 746 397 Core 23 | 20 3 . Treads . | . . . Legs 1157 | 17 743 397 Wheels . | . . . Hover . | . . . Flight . | . . . Fastest Speed 50 | 50 120 120 Average Speed 139 | 110 151 120 Slowest Speed 300 | 200 300 260 Overloaded Moves . | . . . Propulsion Burnouts . | . . . Robots Hopped . | . . . Cave-ins Triggered . | . . . Exploration Rate (%) 47 | 3 95 43 Regions Visited 2 Branch Regions . Pre-discovered Areas . | . . . Known Exits Taken . | . . . Unknown Exits Taken 2 | 1 1 . Scrap Searched . | . . . Spaces Dug . | . . . Terrain Destroyed 13 | . 3 10 Melee . | . . . Projectile . | . . . AOE 13 | . 3 10 Terrain Rammed . | . . . Walls Destroyed . | . . . Machines Disabled . | . . . Actions | -11 -10 -9 --------- Run | Jun Mat Mat Total 1546 | 57 888 601 Wait 190 | 8 56 126 Move 1178 | 36 745 397 Hop . | . . . Pick Up 43 | 7 21 15 Fast Attach 4 | 1 3 . Attach 22 | 5 7 10 Detach . | . . . Swap 12 | . 8 4 Drop 17 | . 10 7 Fire 80 | . 38 42 Melee . | . . . Ram . | . . . Kick . | . . . Crush . | . . . Escape Stasis . | . . . Rewire . | . . . Trap . | . . . Miscellaneous . | . . . Route ------- -11/Junkyard -10/Materials (discovered 3 exits: *Mat x2 / [*Min]) -9/Materials (discovered 3 exits: [*Mat] / [*Min] / [*Sto]) History --------- Turn | Location | Event 24 | -11/Junkyard | Discovered new exit (range 15) 63 | -11/Junkyard | Entered Materials 314 | -10/Materials | Build established: Mutant 459 | -10/Materials | Repaired Aluminum Leg 530 | -10/Materials | Discovered new exit (range 5) 676 | -10/Materials | Discovered new exit (range 12) 1270 | -10/Materials | Discovered new exit (range 10) 1410 | -10/Materials | Entered another Materials area 1410 | -9/Materials | Evolved 2 slots: Propulsion x1, Utility x1 1677 | -9/Materials | Discovered new exit (range 12) 1677 | -9/Materials | Discovered new exit (range 16) 1833 | -9/Materials | Discovered new exit (range 11) 1879 | -9/Materials | Lost 3 parts (1n2w) 2166 | -9/Materials | Self-destructed Last Messages --------------- 02085_ Acquired Beam Rifle. 02091_ Connecting with Terminal... >>Prototypes Downloading prototype IDs... Prc. Beam Rifle Aerolev Unit 02091_ ALERT: Suspicious activity at Terminal M005. Dispatching Investigation squad. 02109_ G-34 Mercenary misfires. 02111_ G-34 Mercenary destroyed. 02111_ Door malfunctions. 02127_ Acquired Aluminum Leg. 02130_ U-05 Engineer destroyed. 02131_ U-05 Engineer repairs door. 02140_ Chain reaction triggered in Ion Engine. 02142_ U-05 Engineer lays Concrete. 02155_ System corrupted: Aluminum Leg fused. 02161_ R-06 Scavenger collects Wheel. 02161_ EM Shotgun destroyed. 02165_ R-06 Scavenger collects Welding Torch. Map ----- +----------------------------------------------------+ | ?????????# ########### #????????????? | | ?????????# ########### ##???????????? | | ?????????# # ## #???????????? | | ?????????# # """ ## #???????????? | | ?????????# # """ ## %###########??????? | | ?????????# # """ ## %# #??????? | | ?????????# # ## # """ #??????? | | ?????????# # """ + # """"" !#??????? | | ?????????# # """ ## # """"" #??????? | | ?????????# # """ ## + """"" #??????? | | ?????????# # ## # """ #??????? | | ???####### ###+####### # #??????? | | # ] #??????? | | ###########??????? | | ???#############+##+#### ##### ##?????????? | | ???????????# #??# # #?????????? | | ???????????# #### ^# #?????????? | | ???????????# ""##r%# "" #?????????? | | ???????????# ""## *#! """#?????????? | | ???????????# ! T"## %+[ S"#?????????? | | ???????????# ""## #* #?????????? | | ???????????# ""## ########?????????? | | ???????????# ####gg #?????????????? | | ???????????# #??# !%u=#?????????????? | | ???????????##############;g;#####??????????? | | ????????????????????# @=% #??????????? | | ????????????????????# *[ #??????????? | | ????????????????????# """ #??????????? | | ????????????????????#! """ #??????????? | | ????????????????????# """ #??????????? | | ????????????????????# "T" #??????????? | | ????????????????????# #?????????? | | ????????????????????##############?????????? | | | | | | | | | | | | | | | | | | | | | | | | | | | | | | | | | | | +----------------------------------------------------+ Best States ------------- Heat Dissipation 28 Energy Generation 10 Energy Capacity 250 Matter Stores 300 Matter Capacity 300 Sight Range 16 Robot Scan Range 14 Terrain Scan Density 10 Armor Coverage 150 Evasion (%) 55 Targeting Accuracy 5 Item Schematics ----------------- Shield Generator | -9/Materials | Scanalyzed Aluminum Leg | -9/Materials | Scanalyzed Robot Schematics ------------------ None Fabricated ------------ Nothing Alien Tech Used ----------------- None Achievements -------------- None Challenges ------------ None Game ------ Seed CargoDroneDoublenader Manual? 0 Play Time 00:21:07 Cumulative 11.6 hours Start 2023.10.01 @ 23:04:55 End 2023.10.01 @ 23:30:45 Sessions 1 Manual Loads 0 Difficulty Rogue Special Mode None Game No. 24 Rogue 21 Adventurer 3 Explorer 0 Win Type - Total 0 Types 0/0/0/0/0/0/0/0/0 Lore% 6 Gallery% 24 Achievement% 19 Wizard Run 0 Options --------- ASCII 0 Keyboard 0 Movement Mouse Keybinds 0 Fullscreen 2 Font 18/SmallcapsGlow Map View 76x50 Tactical HUD 1 Map Filters NONE Filters NONE Steam 1 RUN: 22a51fa6-130b-4b26-816b-0326c5ea6d53